fUSD/lending_fUSD_20250905
["ID","MTS","AMOUNT","RATE_DAILY","PERIOD"]
[383738912,1757103124716,-400.0,0.00036164,10]
[383738913,1757103124726,-400.0,0.00036164,10]
[383738914,1757103124736,-400.0,0.00036164,10]
[383738915,1757103124746,-692.52,0.00036164,10]
[383738916,1757103124757,-400.0,0.00036164,10]
[383738917,1757103124767,-687.32,0.00036164,10]
[383738918,1757103124776,-400.0,0.00036164,10]
[383738919,1757103124785,-400.0,0.00036164,10]
[383738920,1757103124796,-400.0,0.00036164,10]
[383738921,1757103124806,-400.0,0.00036164,10]
[383738922,1757103124816,-400.0,0.00036164,10]
[383738923,1757103124826,-400.0,0.00036164,10]
[383738924,1757103124836,-400.0,0.00036164,10]
[383738925,1757103124846,-171.99944882,0.00036164,10]
[383738926,1757103124855,-400.0,0.00036164,10]
[383738927,1757103124865,-400.0,0.00036164,10]
[383738928,1757103124875,-400.0,0.00036164,10]
[383738929,1757103124887,-400.0,0.00036164,10]
[383738930,1757103124899,-400.0,0.00036164,10]
[383738931,1757103124908,-400.0,0.00036164,10]
[383738932,1757103124918,-400.0,0.00036164,10]
[383738933,1757103124928,-400.0,0.00036164,10]
[383738934,1757103124937,-400.0,0.00036164,10]
[383738935,1757103124947,-404.63471608,0.00036164,10]
[383738936,1757103124956,-400.0,0.00036164,10]
[383738937,1757103124966,-6654.45,0.00036164,10]
[383738938,1757103124976,-400.0,0.00036164,10]
[383738939,1757103124986,-400.0,0.00036164,10]
[383738940,1757103124995,-400.0,0.00036164,10]
[383738941,1757103125005,-400.0,0.00036164,10]
[383738942,1757103125015,-400.0,0.00036164,10]
[383738943,1757103125025,-400.0,0.00036164,10]
[383738944,1757103125035,-400.0,0.00036164,10]
[383738945,1757103125044,-172.86963668,0.00036164,10]
[383738946,1757103125536,-227.13036332,0.00036164,10]
[383738947,1757103125547,-400.0,0.00036164,10]
[383738948,1757103125558,-424.64,0.00036164,10]
[383738949,1757103125569,-123.22963668,0.00036164,10]
[383738950,1757103125587,-276.77036332,0.00036164,10]
[383738951,1757103125596,-400.0,0.00036164,10]
[383738952,1757103125605,-400.0,0.00036164,10]
[383738953,1757103125617,-400.0,0.00036164,10]
[383738954,1757103125628,-400.0,0.00036164,10]
[383738955,1757103125638,-400.0,0.00036164,10]
[383738956,1757103125647,-2854.3,0.00036164,10]
[383738957,1757103125658,-400.0,0.00036164,10]
[383738958,1757103125667,-400.0,0.00036164,10]
[383738959,1757103125677,-404.03218683,0.00036164,10]
[383738960,1757103125687,-400.0,0.00036164,10]
[383738961,1757103125696,-400.0,0.00036164,10]
[383738962,1757103125705,-558.68,0.00036164,10]
[383738963,1757103125715,-400.0,0.00036164,10]
[383738964,1757103125724,-400.0,0.00036164,10]
[383738965,1757103125733,-400.0,0.00036164,10]
[383738966,1757103125742,-400.0,0.00036164,10]
[383738967,1757103125752,-400.0,0.00036164,10]
[383738968,1757103125763,-400.0,0.00036164,10]
[383738969,1757103125775,-400.0,0.00036164,10]
[383738970,1757103125785,-400.0,0.00036164,10]
[383738971,1757103125794,-285.67022196,0.00036164,10]
[383738972,1757103125804,-400.0,0.00036164,10]
[383738973,1757103125814,-302.39245995,0.00036164,10]
[383738974,1757103125827,-97.60754005,0.00036164,10]
[383738975,1757103125837,-541.08,0.00036164,10]
[383738976,1757103125847,-400.0,0.00036164,10]
[383738977,1757103125857,-319.42697344,0.00036164,10]
[383738978,1757103129990,-287.22,0.00019624,2]
[383738979,1757103135072,-420.35319868,0.00019615,2]
[383738980,1757103135394,-79.64680132,0.00019615,2]
[383738981,1757103135436,-500.0,0.00019615,2]
[383738982,1757103135474,-84.31922098,0.00019615,2]
[383738983,1757103136115,-193.7687824,0.00019615,2]
[383738984,1757103142097,-221.91199662,0.00019615,2]
[383738985,1757103142122,-65.30800338,0.00019615,2]
[383738986,1757103147023,-287.22,0.00019614,2]
[383738987,1757103147070,-12.78,0.00019614,2]
[383738988,1757103147099,-13.44,0.00019614,2]
[383738989,1757103148810,-52.44,0.00019614,2]
[383738990,1757103151051,-104.88,0.00019614,2]
[383738991,1757103152801,-190.24,0.00019614,2]
[383738992,1757103153081,-12.78,0.00019615,2]
[383738993,1757103153092,-361.0,0.00019615,2]
[383738994,1757103155814,-400.0,0.00019614,2]
[383738995,1757103161250,-100.0,0.00019614,2]
[383738996,1757103161274,-100.0,0.00019614,2]
[383738997,1757103161290,-200.0,0.00019614,2]
[383738998,1757103168376,-150.46298742,0.00019614,2]
[383738999,1757103175508,-49.53701258,0.00019614,2]
[383739000,1757103175538,-400.92597484,0.00019614,2]
[383739001,1757103175558,-49.53701258,0.00019614,2]
[383739002,1757103175573,-49.53701258,0.00019614,2]
[383739003,1757103175582,-450.46298742,0.00019614,2]
[383739004,1757103182653,-49.53701258,0.00019614,2]
[383739005,1757103182671,-49.53701258,0.00019614,2]
[383739006,1757103182686,-300.92597484,0.00019614,2]
[383739007,1757103189737,-138.71117548,0.00019614,2]
[383739008,1757103189759,-138.71117548,0.00019614,2]
[383739009,1757103189775,-122.57764904,0.00019614,2]
[383739010,1757103196910,-161.28882452,0.00019614,2]
[383739011,1757103196924,-77.42235096,0.00019614,2]
[383739012,1757103196935,-161.28882452,0.00019614,2]
[383739013,1757103203985,-61.28882452,0.00019614,2]
[383739014,1757103203999,-277.42235096,0.00019614,2]
[383739015,1757103204009,-61.28882452,0.00019614,2]
[383739016,1757103211050,-400.0,0.00019514,2]
[383739017,1757103218541,-400.0,0.00019514,2]
[383739018,1757103225626,-404.43331771,0.00019514,2]
[383739019,1757103233226,-400.0,0.00019514,2]
[383739020,1757103241108,-400.0,0.00019514,2]
[383739021,1757103248283,-292.29547248,0.00019514,2]
[383739022,1757103255882,-167.758256,0.00019416,2]
[383739023,1757103255903,-167.758256,0.00019514,2]
[383739024,1757103255934,-64.483488,0.00019514,2]
[383739025,1757103263011,-179.72443619,0.00019514,2]
[383739026,1757103263032,-179.72443619,0.00019614,2]
[383739027,1757103263052,-40.55112762,0.00019614,2]
[383739028,1757103270062,-181.56438833,0.00019614,2]
[383739029,1757103270077,-36.87122334,0.00019614,2]
[383739030,1757103270086,-181.56438833,0.00019614,2]
[383739031,1757103277302,-25.83,0.00019613,2]
[383739032,1757103277315,-474.17,0.00019613,2]
[383739033,1757103277324,-25.83,0.00019613,2]
[383739034,1757103284713,-400.0,0.00019613,2]
[383739035,1757103291792,-74.17,0.00019613,2]
[383739036,1757103291813,-74.17,0.00019613,2]
[383739037,1757103291827,-251.66,0.00019613,2]
[383739038,1757103299009,-160.97053778,0.00019613,2]
[383739039,1757103299028,-13.19946222,0.00019613,2]
[383739040,1757103299038,-160.97053778,0.00019613,2]
[383739043,1757103343694,-333.22208647,0.00019581,2]
[383739045,1757103350813,-1175.0,0.00019581,2]
[383739048,1757103358420,-156.185681,0.00019581,2]
[383739049,1757103365901,-156.185681,0.00019581,2]
[383739050,1757103372685,-156.185681,0.00019581,2]
[383739051,1757103380114,-156.185681,0.00019581,2]
[383739052,1757103387276,-156.185681,0.00019581,2]
[383739055,1757103796468,155.35,0.00014397,2]
[383739056,1757103797695,155.35,0.00015996,2]
[383739057,1757103797779,155.35,0.00017596,2]
[383739064,1757103827562,-150.0,0.00019195,2]
[383739067,1757104011934,413.137,0.00019195,10]
[383739069,1757104056646,4220.1,0.00018,2]
[383739070,1757104056675,5462.86,0.00018,2]
[383739071,1757104068843,187.84039359,0.00019094,20]
[383739072,1757104072777,1000.0,0.00019195,10]
[383739073,1757104077395,-5.35,0.00019195,2]
[383739074,1757104077436,-338.15647633,0.00019473,2]
[383739077,1757104116156,155.48,0.00013699,2]
[383739084,1757104232314,-250.0,0.00019521,2]
[383739085,1757104232325,-250.0,0.00019563,2]
[383739086,1757104232337,-847.87333955,0.00019563,2]
[383739087,1757104232358,-102.12666045,0.00019563,2]
[383739088,1757104232369,-300.0,0.00019563,2]
[383739089,1757104232380,-300.0,0.00019563,2]
[383739090,1757104232391,-500.0,0.00019564,2]
[383739091,1757104232402,-500.0,0.00019564,2]
[383739092,1757104232412,-500.0,0.00019564,2]
[383739093,1757104232423,-500.0,0.00019564,2]
[383739094,1757104232434,-500.0,0.00019564,2]
[383739095,1757104232444,-500.0,0.00019564,2]
[383739096,1757104232455,-500.0,0.00019564,2]
[383739097,1757104232465,-500.0,0.00019564,2]
[383739098,1757104232475,-500.0,0.00019564,2]
[383739099,1757104232486,-500.0,0.00019564,2]
[383739101,1757104232497,-500.0,0.00019564,2]
[383739103,1757104232508,-500.0,0.00019564,2]
[383739105,1757104232519,-500.0,0.00019564,2]
[383739107,1757104232529,-500.0,0.00019564,2]
[383739110,1757104232539,-500.0,0.00019564,2]
[383739112,1757104232549,-500.0,0.00019564,2]
[383739114,1757104232559,-500.0,0.00019564,2]
[383739116,1757104232569,-500.0,0.00019564,2]
[383739118,1757104232580,-500.0,0.00019564,2]
[383739120,1757104232590,-500.0,0.00019564,2]
[383739122,1757104232600,-500.0,0.00019564,2]
[383739125,1757104232612,-500.0,0.00019564,2]
[383739128,1757104232622,-500.0,0.00019564,2]
[383739132,1757104232632,-500.0,0.00019564,2]
[383739134,1757104232642,-500.0,0.00019564,2]
[383739138,1757104232652,-500.0,0.00019564,2]
[383739143,1757104232663,-583.62622092,0.00019564,2]
[383739146,1757104232673,-500.0,0.00019564,2]
[383739148,1757104232683,-500.0,0.00019564,2]
[383739149,1757104232693,-500.0,0.00019564,2]
[383739150,1757104232703,-500.0,0.00019564,2]
[383739151,1757104232713,-500.0,0.00019564,2]
[383739152,1757104233528,-500.0,0.00019564,2]
[383739153,1757104233558,-500.0,0.00019564,2]
[383739154,1757104233587,-500.0,0.00019564,2]
[383739155,1757104233608,-500.0,0.00019564,2]
[383739156,1757104233622,-500.0,0.00019564,2]
[383739157,1757104233632,-500.0,0.00019564,2]
[383739158,1757104233642,-500.0,0.00019564,2]
[383739159,1757104233651,-262.39225435,0.00019564,2]
[383739160,1757104233691,-237.60774565,0.00019564,2]
[383739161,1757104233700,-500.0,0.00019564,2]
[383739162,1757104233710,-500.0,0.00019564,2]
[383739163,1757104233719,-500.0,0.00019564,2]
[383739164,1757104233732,-500.0,0.00019564,2]
[383739165,1757104233741,-500.0,0.00019564,2]
[383739166,1757104233751,-500.0,0.00019564,2]
[383739167,1757104233760,-500.0,0.00019564,2]
[383739168,1757104233770,-500.0,0.00019564,2]
[383739169,1757104233780,-500.0,0.00019564,2]
[383739170,1757104233789,-23148.6960341,0.00019565,2]
[383739171,1757104233799,-48514.4074393,0.0001957,2]
[383739172,1757104233810,-4301.684987,0.00019577,2]
[383739173,1757104233820,-7136.6054254,0.00019577,2]
[383739174,1757104233829,-4460.1172067,0.00019577,2]
[383739175,1757104233838,-6.04391813,0.00019581,2]
[383739176,1757104233848,-7878.7282256,0.00019581,2]
[383739177,1757104233858,-155.35,0.00020795,2]
[383739178,1757104233868,-250.0,0.0002142,2]
[383739179,1757104233877,-195.0,0.00021473,2]
[383739180,1757104233887,-150.0,0.00021473,4]
[383739181,1757104233896,-300.0,0.00021473,2]
[383739182,1757104233906,-300.0,0.00021473,2]
[383739183,1757104233915,-48514.4074393,0.00021848,2]
[383739184,1757104233925,-4460.1172067,0.00021891,2]
[383739185,1757104233935,-4301.684987,0.00021966,2]
[383739186,1757104233944,-1077.63734681,0.00021998,10]
[383739187,1757104233954,-7136.6054254,0.00021999,2]
[383739188,1757104233963,-185.16,0.00022058,2]
[383739189,1757104233972,-2295.1944096,0.00022068,2]
[383739190,1757104233982,-7878.7282256,0.00022068,2]
[383739191,1757104233991,-189.75,0.00022259,2]
[383739192,1757104234001,-252.47,0.00022293,2]
[383739193,1757104234011,-2930.07,0.00022322,2]
[383739194,1757104234021,-666.0,0.00022337,3]
[383739195,1757104234030,-155.35,0.00022395,2]
[383739196,1757104234039,-200.0,0.00022512,2]
[383739197,1757104234048,-167.17,0.00022512,2]
[383739198,1757104234058,-200.0,0.00022526,2]
[383739199,1757104234067,-8666.8,0.00022569,2]
[383739200,1757104234076,-2017.69,0.0002275,2]
[383739201,1757104234087,-3551.1251937,0.00023031,2]
[383739202,1757104234097,-165.22,0.00023136,2]
[383739203,1757104234106,-5165.1722533,0.0002379,2]
[383739204,1757104234116,-155.48,0.00023973,2]
[383739205,1757104234126,-155.35,0.00023994,2]
[383739206,1757104234135,-48514.4074393,0.00024125,2]
[383739207,1757104234144,-4460.1172067,0.00024204,2]
[383739208,1757104234155,-4301.684987,0.00024356,2]
[383739209,1757104234165,-7136.6054254,0.00024421,2]
[383739210,1757104234174,-2295.1944096,0.00024555,2]
[383739211,1757104234183,-7878.7282256,0.00024555,2]
[383739212,1757104234193,-1152.505712,0.00024733,2]
[383739213,1757104234202,-631.09705453,0.000249,2]
[383739214,1757104234211,-211.87454269,0.00025567,2]
[383739215,1757104234221,-155.35,0.00025594,2]
[383739216,1757104234230,-1273.83310994,0.00025619,2]
[383739217,1757104234239,-1273.83310995,0.00025619,2]
[383739218,1757104234247,-6227.2259343,0.00025667,2]
[383739219,1757104234256,-631.0970544,0.00025929,4]
[383739220,1757104234265,-4333.25682568,0.00026393,2]
[383739221,1757104234274,-31734.59134024,0.00026403,2]
[383739222,1757104234285,-12039.13408391,0.00026403,2]
[383739223,1757104234295,-4740.68201515,0.00026403,2]
[383739224,1757104234305,-2166.62841284,0.00026508,2]
[383739225,1757104234314,-4460.1172067,0.00026518,2]
[383739226,1757104234324,-4301.684987,0.00026745,2]
[383739227,1757104234333,-4333.25682568,0.00026832,2]
[383739228,1757104234343,-7136.6054254,0.00026842,2]
[383739229,1757104234353,-631.0970544,0.00026959,6]
[383739230,1757104234363,-4333.25682568,0.00027032,2]
[383739231,1757104234373,-185.16,0.00027032,2]
[383739232,1757104234383,-2295.1944096,0.00027042,2]
[383739233,1757104234393,-7878.7282256,0.00027042,2]
[383739234,1757104234403,-262.42597233,0.00027193,2]
[383739235,1757104234413,-155.35,0.00027194,2]
[383739236,1757104234423,-631.0970544,0.00027988,8]
[383739237,1757104234432,-199.99999901,0.00028,2]
[383739238,1757104234442,-167.17,0.0002814,2]
[383739239,1757104234452,-1293.13216883,0.00028693,2]
[383739240,1757104234462,-166.41,0.0002875,2]
[383739241,1757104234471,-2166.62841284,0.00028783,2]
[383739242,1757104234481,-155.35,0.00028793,2]
[383739243,1757104234491,-1500.0,0.00028793,16]
[383739244,1757104234501,-2123.0,0.000288,5]
[383739245,1757104234511,-2166.62841284,0.00028892,2]
[383739246,1757104234522,-6227.2259343,0.00028902,2]
[383739247,1757104234533,-195.44,0.00029,7]
[383739248,1757104234543,-631.0970544,0.00029017,11]
[383739249,1757104234552,-554.84389009,0.00029179,2]
[383739250,1757104234562,-224.23,0.000292,2]
[383739251,1757104234572,-250.0,0.00029418,2]
[383739252,1757104234582,-2166.62841284,0.0002944,2]
[383739253,1757104234592,-2047.54,0.0002945,2]
[383739254,1757104234603,-294.72,0.00029494,30]
[383739255,1757104234616,-1463.82,0.00029527,2]
[383739256,1757104234626,-160.0,0.00029595,7]
[383739257,1757104234636,-1293.13216881,0.00029639,2]
[383739258,1757104234646,-610.0,0.00029884,2]
[383739259,1757104234656,-2166.62841284,0.00029956,2]
[383739260,1757104234666,-211.63,0.00029966,2]
[383739261,1757104234677,-197.86,0.0003,5]
[383739262,1757104234686,-631.0970544,0.00030046,13]
[383739263,1757104234696,-2166.62841284,0.0003012,2]
[383739264,1757104234705,-4803.76587316,0.0003013,2]
[383739265,1757104234717,-196.23412684,0.0003013,2]
[383739266,1757104234729,-2790.57516289,0.0003013,2]
[383739267,1757104234808,-516.0,0.00027137,2]
[383739268,1757104234817,-10775.03244526,0.0003013,2]
[383739269,1757104234827,-197.57362428,0.0003013,2]
[383739270,1757104234836,-201.17675302,0.0003013,2]
[383739271,1757104234847,-7573.21897298,0.0003013,2]
[383739272,1757104234857,-160.49750808,0.0003013,20]
[383739273,1757104234868,-199.13239021,0.0003013,2]
[383739274,1757104234879,-1567.0,0.00030137,120]
[383739275,1757104234888,-500.0,0.00030177,7]
[383739276,1757104234898,-500.0,0.0003022,7]
[383739277,1757104234907,-500.0,0.00030283,7]
[383739278,1757104234917,-603.27904872,0.00030372,7]
[383739279,1757104234926,-955.08925745,0.00030576,2]
[383739280,1757104234938,-287.44003504,0.00030576,2]
[383739281,1757104234950,-924.09912035,0.00030576,2]
[383739282,1757104234961,-1293.13216881,0.00030586,2]
[383739283,1757104234971,-448.76871084,0.00030627,26]
[383739284,1757104238336,-489.97929639,0.00019563,2]
[383739285,1757104238390,-10.02070361,0.00019563,2]
[383739286,1757104238400,-312.84810726,0.00019563,2]
[383739459,1757104240258,-187.15189274,0.00019563,2]
[383739461,1757104240268,-500.0,0.00019563,2]
[383739463,1757104240277,-500.0,0.00019563,2]
[383739465,1757104240287,-500.0,0.00019563,2]
[383739467,1757104240301,-458.36262209,0.00019563,2]
[383739469,1757104240322,-339.75118632,0.00019564,2]
[383739471,1757104240339,-610.22328916,0.00030627,26]
[383739473,1757104240349,-150.0,0.00030684,120]
[383739475,1757104240358,-994.59127981,0.00030715,7]
[383739477,1757104240368,-500.0,0.00030973,7]
[383739479,1757104240377,-500.0,0.00030984,7]
[383739481,1757104240387,-500.0,0.00031033,7]
[383739483,1757104240396,-631.0970544,0.00031076,15]
[383739485,1757104240410,-500.0,0.00031167,7]
[383739487,1757104240427,-399.999999,0.0003121,2]
[383739489,1757104240436,-2166.62841284,0.00031244,2]
[383739491,1757104240446,-500.0,0.00031254,7]
[383739493,1757104240455,-4333.25682568,0.0003139,2]
[383739495,1757104240465,-14085.82243801,0.000314,30]
[383739497,1757104240474,-500.0,0.0003141,7]
[383739499,1757104240484,-500.0,0.00031444,7]
[383739501,1757104240493,-150.0,0.000315,2]
[383739503,1757104240503,-153.0,0.00031518,2]
[383739505,1757104240513,-2166.62841284,0.00031522,2]
[383739507,1757104240523,-1293.13216881,0.00031532,2]
[383739509,1757104240533,-500.0,0.00031556,7]
[383739511,1757104240542,-500.0,0.0003161,7]
[383739513,1757104240552,-4333.25682568,0.00031638,2]
[383739515,1757104240562,-12321.93,0.00031649,35]
[383739517,1757104240571,-2166.62841284,0.0003179,2]
[383739543,1757104240807,-687.06947383,0.00031798,7]
[383739545,1757104240817,-2000.0,0.000318,2]
[383739547,1757104240827,-410.68365985,0.0003186,120]
[383739549,1757104240836,-500.0,0.00031882,7]
[383739551,1757104240846,-2012.14180963,0.00032,2]
[383739553,1757104240856,-500.0,0.00032021,7]
[383739555,1757104240865,-500.0,0.00032056,7]
[383739557,1757104240875,-631.0970544,0.00032105,17]
[383739559,1757104240884,-500.0,0.00032119,7]
[383739561,1757104240893,-4333.25682568,0.00032128,2]
[383739563,1757104240902,-6227.2259343,0.00032138,2]
[383739565,1757104240912,-1293.13216881,0.00032478,2]
[383739567,1757104240922,-500.0,0.00032569,7]
[383739569,1757104240931,-500.0,0.00032656,7]
[383739571,1757104240941,-721.28960847,0.00032705,7]
[383739573,1757104240951,-500.0,0.00032771,7]
[383739575,1757104240960,-500.0,0.00032774,7]
[383739577,1757104240970,-500.0,0.00032796,7]
[383739579,1757104240980,-2166.62841284,0.00032812,2]
[383739581,1757104240990,-186.36379049,0.00032851,2]
[383739583,1757104241000,-274.3,0.00032871,2]
[383739585,1757104241010,-315.2702382,0.00032877,7]
[383739587,1757104241020,-500.0,0.00032901,7]
[383739589,1757104241029,-961.38609621,0.0003301,7]
[383739591,1757104241039,-2166.62841284,0.00033124,2]
[383739593,1757104241048,-631.0970544,0.00033134,19]
[383739595,1757104241058,-500.0,0.00033312,7]
[383739597,1757104241069,-500.0,0.00033381,7]
[383739599,1757104241079,-311.0,0.000334,2]
[383739601,1757104241088,-1293.13216881,0.00033425,2]
[383739604,1757104241098,-166.41,0.00033495,2]
[383739606,1757104241108,-972.53642214,0.00033596,7]
[383739608,1757104241119,-500.0,0.00033753,7]
[383739610,1757104241129,-167.17,0.00033768,2]
[383739612,1757104241138,-500.0,0.00033807,7]
[383739614,1757104241147,-2166.62841284,0.00033905,2]
[383739616,1757104241157,-500.0,0.00033915,7]
[383739618,1757104241167,-500.0,0.00034114,7]
[383739620,1757104241176,-500.0,0.00034151,7]
[383739622,1757104241186,-631.0970544,0.00034164,22]
[383739624,1757104241195,-168.0,0.00034196,2]
[383739626,1757104241205,-1175.0,0.00034214,2]
[383739628,1757104241216,-3382.0,0.00034214,2]
[383739630,1757104241225,-155.48,0.00034247,2]
[383739632,1757104241234,-609.2019815,0.00034346,7]
[383739634,1757104241243,-168.0,0.00034359,2]
[383739636,1757104241252,-167.17,0.00034361,2]
[383739638,1757104241262,-2166.62841284,0.00034361,2]
[383739640,1757104241271,-1293.13216881,0.00034371,2]
[383739642,1757104241281,-500.0,0.00034439,7]
[383739644,1757104241290,-305.0,0.0003456,2]
[383739646,1757104241299,-500.0,0.00034637,7]
[383739648,1757104241308,-168.0,0.00034696,2]
[383739650,1757104241317,-195.44,0.000347,7]
[383739652,1757104241329,-168.0,0.00034851,7]
[383739654,1757104241340,-168.0,0.00034855,7]
[383739656,1757104241349,-156.33060676,0.000349,2]
[383739658,1757104241358,-156.33060674,0.000349,2]
[383739660,1757104241368,-500.0,0.0003494,7]
[383739662,1757104241378,-500.0,0.00034941,7]
[383739664,1757104241387,-168.0,0.00034977,2]
[383739666,1757104241397,-168.0,0.00034992,2]
[383739668,1757104241406,-419.999999,0.00035,2]
[383739670,1757104241415,-254.23466065,0.00035,30]
[383739672,1757104241425,-952.69154515,0.00035075,7]
[383739674,1757104241435,-162.65,0.00035156,2]
[383739676,1757104241445,-2166.62841284,0.00035183,2]
[383739678,1757104241454,-631.0970544,0.00035193,24]
[383739680,1757104241463,-500.0,0.00035253,7]
[383739682,1757104241472,-1000.0,0.00035273,2]
[383739684,1757104241481,-2166.62841284,0.00035307,2]
[383739686,1757104241491,-1293.13216881,0.00035317,2]
[383739688,1757104241500,-4000.0,0.00035343,4]
[383739690,1757104241509,-2754.0,0.00035359,5]
[383739692,1757104241520,-2166.62841284,0.00035363,2]
[383739694,1757104241529,-6227.2259343,0.00035373,2]
[383739696,1757104241538,-195.44,0.000354,7]
[383739698,1757104241548,-2166.62841284,0.00035406,2]
[383739700,1757104241558,-2289.69,0.00035455,2]
[383739702,1757104241566,-499.99,0.00035455,2]
[383739704,1757104241575,-999.99,0.00035455,2]
[383739706,1757104241584,-150.99,0.00035455,2]
[383739708,1757104241594,-9999.99,0.00035455,2]
[383739710,1757104241603,-9696.43,0.00035455,2]
[383739712,1757104241612,-299.99,0.00035455,30]
[383739714,1757104241622,-40496.64,0.00035455,10]
[383739716,1757104241631,-9999.99,0.00035455,2]
[383739718,1757104241641,-150.99,0.00035455,30]
[383739720,1757104241650,-9999.99,0.00035455,2]
[383739722,1757104241659,-8211.6,0.00035455,2]
[383739724,1757104241669,-735.53,0.00035455,2]
[383739726,1757104241678,-167.56689422,0.00035463,120]
[383739728,1757104241687,-236.43981134,0.00035466,9]
[383739730,1757104241696,-560.44338692,0.00035482,7]
[383739732,1757104241706,-8666.51365136,0.00035496,2]
[383739734,1757104241715,-1500.0,0.000355,2]
[383739736,1757104241724,-7826.623053,0.000355,7]
[383739738,1757104241738,-186.318695,0.00035502,2]
[383739740,1757104241748,-77407.6064016,0.00035506,2]
[383739742,1757104241758,-151.0,0.00035513,14]
[383739744,1757104241769,-34668.1073,0.00035516,2]
[383739746,1757104241779,-49709.69257642,0.00035516,2]
[383739749,1757104241796,-5671.62059078,0.00035516,2]
[383739751,1757104241808,-818.06783151,0.00035516,2]
[383739915,1757104243470,-1600.0,0.00035516,2]
[383740212,1757104246446,-360.93092576,0.00019564,2]
[383740214,1757104246456,-232.05321061,0.00019564,2]
[383740216,1757104246464,-3677.81749227,0.00035416,2]
[383740993,1757104254309,-160.45582599,0.000288,5]
[383741070,1757104286310,153.73657,0.00030136,120]
[383741075,1757104730817,165.85,0.00016059,2]
[383741077,1757104915914,231.7292724,0.000301,120]
[383741078,1757104946478,200.0,0.000195,4]
[383741080,1757105154501,155.11,0.00013699,2]
[383741086,1757105431640,-155.11,0.00023973,2]
[383741087,1757105431652,-500.0,0.000248,2]
[383741088,1757105431663,-692.30693362,0.000249,2]
[383741089,1757105431674,-163.72,0.0002564,2]
[383741090,1757105431686,-692.30693354,0.00025929,4]
[383741091,1757105431696,-160.0,0.00026056,2]
[383741092,1757105431707,-250.0,0.0002637,2]
[383741093,1757105431719,-500.0,0.0002637,2]
[383741094,1757105431728,-692.30693354,0.00026959,6]
[383741096,1757105431737,-517.0,0.00027137,2]
[383741098,1757105431747,-5351.0,0.000279,5]
[383741100,1757105431757,-692.30693354,0.00027988,8]
[383741101,1757105431767,-300.0,0.00028099,2]
[383741102,1757105431777,-1200.0,0.00028099,2]
[383741103,1757105431788,-500.0,0.00028499,2]
[383741105,1757105431797,-500.0,0.00028499,2]
[383741108,1757105431807,-525.741162,0.00028499,2]
[383741110,1757105431817,-692.30693354,0.00029017,11]
[383741112,1757105431826,-201.81,0.000295,2]
[383741114,1757105431836,-692.30693354,0.00030046,13]
[383741116,1757105431846,-1499.0,0.00030476,2]
[383741118,1757105431855,-500.0,0.00030505,7]
[383741120,1757105431864,-500.0,0.00031063,7]
[383741122,1757105431873,-692.30693354,0.00031076,15]
[383741123,1757105431883,-500.0,0.00031104,7]
[383741124,1757105431892,-500.0,0.00031148,7]
[383741125,1757105431901,-500.0,0.0003116,7]
[383741126,1757105431911,-153.0,0.00031183,2]
[383741127,1757105431921,-687.06947383,0.00031234,7]
[383741128,1757105431930,-500.0,0.00031276,7]
[383741129,1757105431940,-721.28960847,0.00031277,7]
[383741130,1757105431949,-500.0,0.00031389,7]
[383741131,1757105431959,-150.0,0.00031488,7]
[383741132,1757105431968,-500.0,0.0003159,7]
[383741133,1757105431978,-354.91,0.00031745,2]